bitfinex-derivatives/quotes_BTCF0:USTF0_20241221
["timestamp","ask_amount","ask_price","bid_price","bid_amount"]
[1734807253864,0.01028773,97348.0,97347.0,0.05238]
[1734807253865,0.01728773,97348.0,97347.0,0.05238]
[1734807254258,0.02628773,97348.0,97347.0,0.05238]
[1734807254961,0.02624946,97348.0,97347.0,0.05238]
[1734807257465,0.016,97348.0,97347.0,0.05238]
[1734807258153,0.12229503,97358.0,97347.0,0.05238]
[1734807258358,0.12229503,97358.0,97355.0,0.412176]
[1734807259356,0.01054145,97356.0,97355.0,0.412176]
[1734807259764,0.01854145,97356.0,97355.0,0.412176]
[1734807259969,0.01854145,97356.0,97355.0,0.42243056]
[1734807260466,0.01854145,97356.0,97355.0,0.42343056]
[1734807263063,0.01854145,97356.0,97355.0,0.413176]
[1734807264668,0.02884512,97356.0,97355.0,0.413176]
[1734807265668,0.02884512,97356.0,97355.0,0.052376]
[1734807265868,0.0371327,97356.0,97355.0,0.052376]
[1734807266069,0.06174512,97356.0,97355.0,0.052376]
[1734807266962,0.0700327,97356.0,97355.0,0.052376]
[1734807267173,0.05144145,97356.0,97355.0,0.052376]
[1734807267374,0.07012403,97356.0,97355.0,0.052376]
[1734807268074,0.07012403,97356.0,97355.0,0.001]
[1734807270172,0.07012473,97356.0,97355.0,0.001]
[1734807270474,0.03722532,97356.0,97355.0,0.001]
[1734807270675,0.03722663,97356.0,97355.0,0.001]
[1734807273175,0.0371918,97356.0,97355.0,0.001]
[1734807276077,0.03720418,97356.0,97355.0,0.001]
[1734807277977,0.03721488,97356.0,97355.0,0.001]
[1734807278373,0.15950991,97356.0,97355.0,0.001]
[1734807279478,0.15953829,97356.0,97355.0,0.001]
[1734807279876,0.03724326,97356.0,97355.0,0.001]
[1734807280876,0.03570181,97356.0,97355.0,0.001]
[1734807282174,0.38707681,97356.0,97349.0,0.15357604]
[1734807282374,0.3608,97350.0,97345.0,0.1205598]
[1734807282584,0.051381,97346.0,97345.0,0.1205598]
[1734807282876,0.07008281,97346.0,97345.0,0.1205598]
[1734807283679,0.07008716,97346.0,97345.0,0.1205598]
[1734807283982,0.12004673,97346.0,97329.0,0.051389]
[1734807284177,0.12004673,97346.0,97320.0,0.3608]
[1734807284178,0.051389,97332.0,97330.0,0.051389]
[1734807284379,0.01870616,97331.0,97330.0,0.051389]
[1734807284774,0.0186275,97331.0,97330.0,0.051389]
[1734807285475,0.0196275,97331.0,97330.0,0.051389]
[1734807286477,0.14199366,97331.0,97330.0,0.051389]
[1734807286785,0.051391,97327.0,97324.0,0.051392]
[1734807286980,0.0700185,97327.0,97325.0,0.051391]
[1734807287677,0.0700185,97327.0,97319.0,0.051395]
[1734807287678,0.06170768,97327.0,97319.0,0.051395]
[1734807287888,0.07000765,97327.0,97326.0,0.00254103]
[1734807288082,0.0699912,97327.0,97326.0,0.00254103]
[1734807288386,0.0699912,97327.0,97326.0,0.00354103]
[1734807289280,0.18405684,97327.0,97326.0,0.00354103]
[1734807290678,0.06169068,97327.0,97326.0,0.00354103]
[1734807290880,0.06169068,97327.0,97326.0,0.002]
[1734807291282,0.0699912,97327.0,97326.0,0.002]
[1734807291994,0.1005912,97327.0,97326.0,0.002]
[1734807294588,0.1005912,97327.0,97312.0,0.051399]
[1734807294589,0.051398,97314.0,97312.0,0.051399]
[1734807296394,0.051398,97314.0,97313.0,0.00310426]
[1734807296591,0.052398,97314.0,97313.0,0.01010426]
[1734807303295,0.06271163,97314.0,97313.0,0.01010426]
[1734807303495,0.052398,97314.0,97313.0,0.01010426]
[1734807303803,0.06271163,97314.0,97313.0,0.01010426]
[1734807304003,0.052398,97314.0,97313.0,0.01010426]
[1734807304198,0.06271163,97314.0,97313.0,0.01010426]
[1734807304393,0.052398,97314.0,97313.0,0.01010426]
[1734807304592,0.07098771,97314.0,97313.0,0.01010426]
[1734807304802,0.07098779,97314.0,97313.0,0.01010426]
[1734807307408,0.07099745,97314.0,97313.0,0.01010426]
[1734807308402,0.051403,97303.0,97302.0,0.0321]
[1734807309096,0.06172045,97303.0,97302.0,0.0321]
[1734807309295,0.06179257,97303.0,97302.0,0.0321]
[1734807309707,0.06179257,97303.0,97302.0,0.0371]
[1734807309708,0.06279257,97303.0,97302.0,0.0371]
[1734807310293,0.06283835,97303.0,97302.0,0.0371]
[1734807311301,0.07212068,97303.0,97302.0,0.008]
[1734807312906,0.07212068,97303.0,97302.0,0.005]
[1734807313103,0.01971768,97303.0,97302.0,0.004]
[1734807313407,0.07115921,97303.0,97302.0,0.004]
[1734807313607,0.06075147,97303.0,97302.0,0.004]
[1734807313809,0.07115659,97303.0,97302.0,0.004]
[1734807314304,0.07115551,97303.0,97302.0,0.004]
[1734807314508,0.08170141,97303.0,97302.0,0.004]
[1734807316006,0.07131708,97303.0,97302.0,0.004]
[1734807316201,0.09198142,97303.0,97302.0,0.004]
[1734807322008,0.08165618,97303.0,97302.0,0.004]
[1734807322212,0.09196707,97303.0,97302.0,0.004]
[1734807322514,0.09196712,97303.0,97302.0,0.004]
[1734807323311,0.09196042,97303.0,97302.0,0.004]
[1734807324014,0.08162824,97303.0,97302.0,0.004]
[1734807324217,0.08162926,97303.0,97302.0,0.004]
[1734807324934,0.07332341,97303.0,97302.0,0.004]
[1734807325209,0.08162747,97303.0,97302.0,0.004]
[1734807326820,0.23467616,97303.0,97302.0,0.004]
[1734807327916,0.22642398,97303.0,97302.0,0.004]
[1734807328218,0.23472143,97303.0,97302.0,0.004]
[1734807328515,0.08167274,97303.0,97302.0,0.004]
[1734807329616,0.13164967,97303.0,97302.0,0.004]
[1734807330915,0.13165635,97303.0,97302.0,0.004]
[1734807331119,0.13995642,97303.0,97302.0,0.004]
[1734807331316,0.13996148,97303.0,97302.0,0.004]
[1734807334120,0.13166141,97303.0,97302.0,0.004]
[1734807336820,0.13168608,97303.0,97302.0,0.004]
[1734807339427,0.31534451,97303.0,97302.0,0.004]
[1734807339925,0.31534553,97303.0,97302.0,0.004]
[1734807340424,0.1316871,97303.0,97302.0,0.004]
[1734807343026,0.0802841,97303.0,97302.0,0.055404]
[1734807343221,0.0198382,97303.0,97302.0,0.055404]
[1734807343531,0.21187532,97315.0,97314.0,0.051398]
[1734807344721,0.21187532,97315.0,97314.0,0.053398]
[1734807344921,0.15343578,97318.0,97317.0,0.051396]
[1734807346529,0.18412294,97324.0,97318.0,0.051395]
[1734807346530,0.09188925,97319.0,97318.0,0.051395]
[1734807347624,0.09188925,97321.0,97320.0,0.051394]
[1734807349318,0.09188925,97323.0,97320.0,0.051394]
[1734807349618,0.09188925,97323.0,97321.0,0.051393]
[1734807350622,0.09188925,97324.0,97321.0,0.051393]
[1734807350821,0.09188925,97324.0,97321.0,0.052393]
[1734807351024,0.09188925,97324.0,97322.0,0.051393]
[1734807351632,0.09188925,97324.0,97323.0,0.0322]
[1734807351827,0.09188925,97325.0,97324.0,0.051392]
[1734807353227,0.122519,97329.0,97328.0,0.05139]
[1734807353432,0.15343578,97336.0,97335.0,0.051386]
[1734807353627,0.00154158,97338.0,97335.0,0.3608]
[1734807353827,0.00154158,97338.0,97337.0,0.051385]
[1734807354535,0.00154158,97338.0,97327.0,0.3608]
[1734807354835,0.0637,97337.0,97333.0,0.051387]
[1734807355031,0.0637,97337.0,97335.0,0.051386]
[1734807356549,0.0727,97337.0,97335.0,0.051386]
[1734807357345,0.0777,97337.0,97335.0,0.052386]
[1734807364548,0.0777,97337.0,97335.0,0.413186]
[1734807365145,0.014,97337.0,97335.0,0.413186]
[1734807365344,0.00154158,97338.0,97337.0,0.051385]
[1734807368249,0.00154158,97338.0,97337.0,0.001]
[1734807368454,0.06311752,97338.0,97337.0,0.001]
[1734807368647,0.051386,97335.0,97332.0,0.051388]
[1734807368849,0.09427794,97334.0,97332.0,0.051388]
[1734807369043,0.01019094,97333.0,97332.0,0.051388]
[1734807369245,0.01841037,97333.0,97332.0,0.051388]
[1734807369451,0.01019094,97333.0,97332.0,0.051388]
[1734807370357,0.01841037,97333.0,97332.0,0.051388]
[1734807370755,0.01854232,97333.0,97332.0,0.051388]
[1734807371966,0.02154232,97333.0,97332.0,0.051388]
[1734807372354,0.02254232,97333.0,97332.0,0.051388]
[1734807373665,0.02255768,97333.0,97332.0,0.051388]
[1734807375855,0.02253222,97333.0,97332.0,0.051388]
[1734807376464,0.01429359,97333.0,97332.0,0.051388]
[1734807376666,0.02253247,97333.0,97332.0,0.051388]
[1734807379473,0.01429359,97333.0,97332.0,0.051388]
[1734807379770,0.02254132,97333.0,97332.0,0.051388]
[1734807380465,0.07392932,97333.0,97327.0,0.05139]
[1734807380665,0.07392932,97333.0,97320.0,0.29813024]
[1734807380666,0.051392,97325.0,97320.0,0.29813024]
[1734807380863,0.051393,97322.0,97320.0,0.29813024]
[1734807381065,0.01854132,97321.0,97320.0,0.24673624]
[1734807382268,0.01854132,97321.0,97320.0,0.24973624]
[1734807382467,0.00824773,97321.0,97320.0,0.24973624]
[1734807382656,0.01852391,97321.0,97320.0,0.24973624]
[1734807382858,0.0185246,97321.0,97320.0,0.25073624]
[1734807383059,0.0185246,97321.0,97320.0,0.004]
[1734807383571,0.01851073,97321.0,97320.0,0.004]
[1734807384862,0.01029971,97322.0,97321.0,0.051394]
[1734807385066,0.01848118,97322.0,97321.0,0.051394]
[1734807385572,0.01847899,97322.0,97321.0,0.051394]
[1734807386070,0.01847899,97322.0,97321.0,0.052394]
[1734807386277,0.01847899,97322.0,97321.0,0.054394]
[1734807388389,0.36140001,97323.0,97321.0,0.054394]
[1734807388671,0.01847771,97322.0,97321.0,0.054394]
[1734807390371,0.01847771,97322.0,97321.0,0.003]
[1734807391369,0.01851258,97322.0,97321.0,0.003]
[1734807391673,0.01851258,97322.0,97321.0,0.002]
[1734807391871,0.01851331,97322.0,97321.0,0.003]
[1734807393570,0.01850963,97322.0,97321.0,0.003]
[1734807394374,0.01843704,97322.0,97321.0,0.003]
[1734807395465,0.01843704,97322.0,97321.0,0.3638]
[1734807395775,0.01848163,97322.0,97321.0,0.3638]
[1734807396078,0.00828058,97328.0,97327.0,0.051391]
[1734807396275,0.01841075,97328.0,97327.0,0.051391]
[1734807396575,0.15343578,97334.0,97333.0,0.051388]
[1734807396766,0.07551052,97334.0,97333.0,0.4511396]
[1734807397572,0.04401052,97334.0,97333.0,0.4511396]
[1734807397875,0.04401052,97334.0,97333.0,0.4531396]
[1734807398277,0.24579253,97356.0,97333.0,0.4531396]
[1734807398278,0.00828839,97355.0,97333.0,0.66693739]
[1734807398578,0.42253846,97367.0,97356.0,0.051375]
[1734807398767,0.00982908,97357.0,97356.0,0.051375]
[1734807399276,0.00154115,97357.0,97356.0,0.051375]
[1734807399580,0.00828793,97364.0,97354.0,0.3608]
[1734807399879,0.00829047,97365.0,97354.0,0.51275193]
[1734807400068,0.00829047,97365.0,97364.0,0.051371]
[1734807400271,0.00829372,97368.0,97367.0,0.05137]
[1734807400672,0.0622,97369.0,97367.0,0.05137]
[1734807401676,0.009,97368.0,97367.0,0.05237]
[1734807402074,0.0622,97369.0,97367.0,0.05137]
[1734807402281,0.0712,97369.0,97367.0,0.05237]
[1734807402777,0.009,97368.0,97367.0,0.05237]
[1734807403483,0.009,97368.0,97367.0,0.05337]
[1734807404278,0.008,97368.0,97367.0,0.05337]
[1734807404982,0.017,97368.0,97367.0,0.05337]
[1734807407283,0.009,97368.0,97367.0,0.06280563]
[1734807407872,0.032,97374.0,97373.0,0.051366]
[1734807408075,0.0315,97381.0,97380.0,0.051363]
[1734807409773,0.0405,97381.0,97380.0,0.052363]
[1734807410474,0.0455,97381.0,97380.0,0.052363]
[1734807411085,0.051363,97380.0,97360.0,0.15195193]
[1734807411276,0.051364,97378.0,97368.0,0.051369]
[1734807411477,0.3608,97374.0,97368.0,0.051369]
[1734807411689,0.3608,97374.0,97368.0,0.001469]
[1734807411983,0.3608,97374.0,97368.0,0.051369]
[1734807412371,0.051368,97371.0,97359.0,0.051373]
[1734807412571,0.051368,97371.0,97360.0,0.051373]
[1734807412771,0.3608,97362.0,97361.0,0.001472]
[1734807412977,0.3608,97362.0,97357.0,0.051375]
[1734807413480,0.3608,97362.0,97350.0,0.15195193]
[1734807413481,0.3608,97362.0,97361.0,0.051373]
[1734807414883,0.3698,97362.0,97361.0,0.051373]
[1734807415186,0.3728,97362.0,97361.0,0.051373]
[1734807416083,0.3738,97362.0,97361.0,0.051373]
[1734807416776,0.051374,97358.0,97353.0,0.051377]
[1734807417086,0.0305,97357.0,97355.0,0.051376]
[1734807417586,0.051378,97352.0,97340.0,0.15195193]
[1734807417772,0.051378,97352.0,97350.0,0.051378]
[1734807417773,0.412178,97352.0,97350.0,0.051378]
[1734807418880,0.3608,97352.0,97350.0,0.051378]
[1734807419083,0.3618,97352.0,97350.0,0.051378]
[1734807420388,0.3608,97352.0,97350.0,0.051378]
[1734807420690,0.3618,97352.0,97350.0,0.051378]
[1734807421089,0.3628,97352.0,97350.0,0.051378]
[1734807421586,0.3638,97352.0,97350.0,0.051378]
[1734807422586,0.003,97352.0,97351.0,0.3608]
[1734807424785,0.001,97352.0,97351.0,0.3638]
[1734807426091,0.001,97352.0,97351.0,0.3951]
[1734807426980,0.0323,97373.0,97351.0,0.3961]
[1734807427180,0.0323,97373.0,97366.0,0.3608]
[1734807427381,0.0323,97373.0,97372.0,0.051367]
[1734807428584,0.19450769,97381.0,97372.0,0.051367]
[1734807428786,0.18619062,97381.0,97379.0,0.412163]
[1734807428990,0.12199062,97381.0,97379.0,0.412163]
[1734807430083,0.0319,97386.0,97379.0,0.412163]
[1734807430084,0.0319,97386.0,97385.0,0.05136]
[1734807430294,0.04215266,97386.0,97385.0,0.05136]
[1734807430696,0.0319,97386.0,97385.0,0.05136]
[1734807431286,0.0409,97386.0,97385.0,0.05236]
[1734807432597,0.0489,97386.0,97385.0,0.05336]
[1734807433110,0.017,97386.0,97385.0,0.05336]
[1734807435800,0.015,97386.0,97385.0,0.05336]
[1734807436198,0.015,97386.0,97385.0,0.29919639]
[1734807437606,0.015,97386.0,97385.0,0.05336]
[1734807452923,0.015,97386.0,97385.0,0.002]
[1734807453115,0.02517232,97386.0,97384.0,0.05136]
[1734807453315,0.07327232,97385.0,97384.0,0.23515429]
[1734807454421,0.07327232,97385.0,97384.0,0.23615429]
[1734807455023,0.07327232,97385.0,97384.0,0.00246]
[1734807455024,0.07927232,97385.0,97384.0,0.00246]
[1734807455218,0.07927232,97385.0,97384.0,0.002]
[1734807455518,0.08760058,97385.0,97384.0,0.002]
[1734807455722,0.08760058,97385.0,97375.0,0.23515929]
[1734807456021,0.08760058,97385.0,97377.0,0.051364]
[1734807456022,0.3608,97381.0,97377.0,0.051364]
[1734807456219,0.01850058,97380.0,97377.0,0.051364]
[1734807456423,0.01850058,97379.0,97377.0,0.051364]
[1734807456734,0.01850058,97378.0,97377.0,0.051364]
[1734807457026,0.01860986,97378.0,97377.0,0.051364]
[1734807457421,0.01860986,97378.0,97367.0,0.18379429]
[1734807457722,0.01860986,97377.0,97373.0,0.051366]
[1734807457918,0.01860986,97376.0,97373.0,0.051366]
[1734807458126,0.01860986,97375.0,97373.0,0.051366]
[1734807458316,0.01860986,97374.0,97373.0,0.051366]
[1734807459621,0.02160986,97374.0,97373.0,0.051366]
[1734807459916,0.02162088,97374.0,97373.0,0.051366]
[1734807460139,0.01132697,97374.0,97373.0,0.051366]
[1734807460316,0.02162089,97374.0,97373.0,0.051366]
[1734807460826,0.01529392,97374.0,97373.0,0.051366]
[1734807461225,0.02362089,97374.0,97373.0,0.051366]
[1734807461425,0.01529392,97374.0,97373.0,0.051366]
[1734807462616,0.005,97374.0,97373.0,0.051366]
[1734807473328,0.051367,97372.0,97367.0,0.051369]
[1734807473523,0.3608,97368.0,97367.0,0.051369]
[1734807476037,0.0306,97371.0,97370.0,0.051368]
[1734807476639,0.00832638,97371.0,97370.0,0.051368]
[1734807476834,0.01019307,97371.0,97370.0,0.051368]
[1734807477242,0.01019307,97374.0,97372.0,0.051367]
[1734807477440,0.002,97371.0,97370.0,0.084168]
[1734807478438,0.09172339,97377.0,97376.0,0.051365]
[1734807479438,0.01011547,97386.0,97373.0,0.18379429]
[1734807479638,0.01011547,97385.0,97384.0,0.051361]
[1734807479838,0.01011547,97387.0,97386.0,0.05136]
[1734807480646,0.10183886,97387.0,97386.0,0.05136]
[1734807480950,0.11083886,97387.0,97386.0,0.05136]
[1734807481642,0.11918656,97387.0,97386.0,0.05136]
[1734807482153,0.02748233,97387.0,97386.0,0.05136]
[1734807483355,0.02511547,97387.0,97386.0,0.41316]
[1734807483537,0.015,97387.0,97386.0,0.44366]
[1734807483741,0.015,97387.0,97386.0,0.47596]
[1734807484551,0.12253856,97388.0,97386.0,0.47596]
[1734807484753,0.09198049,97396.0,97395.0,0.051355]
[1734807484942,0.09198049,97396.0,97395.0,0.412155]
[1734807486056,0.10206365,97405.0,97395.0,0.54514038]
[1734807486236,0.01008316,97404.0,97402.0,0.051351]
[1734807486441,0.09198049,97405.0,97402.0,0.051351]
[1734807486647,0.01008316,97404.0,97402.0,0.051351]
[1734807487244,0.01008316,97404.0,97395.0,0.414995]
[1734807487245,0.008,97396.0,97395.0,0.414995]
[1734807487444,0.008,97396.0,97395.0,0.413155]
[1734807488653,0.014,97396.0,97395.0,0.414155]
[1734807489149,0.006,97396.0,97395.0,0.413155]
[1734807489356,0.006,97396.0,97395.0,0.42359119]
[1734807489856,0.006,97396.0,97395.0,0.06279119]
[1734807491657,0.006,97396.0,97395.0,0.42359119]
[1734807491952,0.006,97396.0,97395.0,0.42459119]
[1734807491953,0.013,97396.0,97395.0,0.42459119]
[1734807501354,0.00126969,97396.0,97395.0,0.42459119]
[1734807501543,0.09198049,97411.0,97410.0,0.051347]
[1734807501759,0.09198049,97411.0,97410.0,0.412147]
[1734807503462,0.007,97411.0,97410.0,0.413147]
[1734807504954,0.011,97411.0,97410.0,0.413147]
[1734807506247,0.011,97411.0,97410.0,0.3618]
[1734807506451,0.011,97411.0,97410.0,0.413147]
[1734807506651,0.02943247,97411.0,97410.0,0.052347]
[1734807506857,0.02107022,97411.0,97410.0,0.052347]
[1734807507051,0.05417022,97411.0,97410.0,0.052347]
[1734807507552,0.06253247,97411.0,97410.0,0.052347]
[1734807508369,0.0441,97411.0,97410.0,0.052347]
[1734807508560,0.05425885,97411.0,97410.0,0.052347]
[1734807511355,0.0441,97411.0,97410.0,0.052347]
[1734807511554,0.05420802,97411.0,97410.0,0.052347]
[1734807511755,0.06259034,97411.0,97410.0,0.052347]
[1734807512459,0.05421054,97411.0,97410.0,0.052347]
[1734807512666,0.06259034,97411.0,97410.0,0.052347]
[1734807513362,0.05421054,97411.0,97410.0,0.052347]
[1734807513565,0.06259034,97411.0,97410.0,0.052347]
[1734807517257,0.06259745,97411.0,97410.0,0.052347]
[1734807519063,0.02949745,97411.0,97410.0,0.052347]
[1734807519463,0.02111054,97411.0,97410.0,0.052347]
[1734807520369,0.0210828,97411.0,97410.0,0.052347]
[1734807520573,0.0210831,97411.0,97410.0,0.052347]
[1734807520755,0.02947557,97411.0,97410.0,0.052347]
[1734807520960,0.0210831,97411.0,97410.0,0.052347]
[1734807521370,0.11317667,97411.0,97410.0,0.052347]
[1734807521865,0.12156914,97411.0,97410.0,0.052347]
[1734807522065,0.11317667,97411.0,97410.0,0.052347]
[1734807522663,0.12156914,97411.0,97410.0,0.052347]
[1734807523093,0.11317667,97411.0,97410.0,0.052347]
[1734807523457,0.12156247,97411.0,97410.0,0.052347]
[1734807524075,0.0294689,97411.0,97410.0,0.052347]
[1734807526167,0.02956108,97411.0,97410.0,0.052347]
[1734807527172,0.15209964,97411.0,97410.0,0.052347]
[1734807528575,0.02956108,97411.0,97410.0,0.052347]
[1734807528969,0.02957323,97411.0,97410.0,0.052347]
[1734807529388,0.011,97411.0,97410.0,0.052347]
[1734807529675,0.02955989,97411.0,97410.0,0.23668738]
[1734807531374,0.02955989,97411.0,97410.0,0.052347]
[1734807532077,0.02955366,97411.0,97410.0,0.052347]
[1734807532666,0.15209222,97411.0,97410.0,0.052347]
[1734807534066,0.02955366,97411.0,97410.0,0.23668738]
[1734807534977,0.0295467,97411.0,97410.0,0.23668738]
[1734807535375,0.0295467,97411.0,97410.0,0.052347]
[1734807537875,0.02116019,97411.0,97410.0,0.052347]
[1734807538082,0.02954934,97411.0,97410.0,0.052347]
[1734807538277,0.011,97411.0,97410.0,0.052347]
[1734807538578,0.02955128,97411.0,97410.0,0.052347]
[1734807539600,0.0414804,97411.0,97410.0,0.052347]
[1734807539998,0.04148615,97411.0,97410.0,0.052347]
[1734807540705,0.04148621,97411.0,97410.0,0.052347]
[1734807541399,0.02955709,97411.0,97410.0,0.052347]
[1734807542606,0.02955709,97411.0,97410.0,0.29813418]
[1734807542800,0.04148621,97411.0,97410.0,0.29813418]
[1734807543000,0.04146588,97411.0,97410.0,0.29813418]
[1734807543306,0.02953676,97411.0,97410.0,0.29813418]
[1734807545205,0.02953676,97411.0,97410.0,0.052347]
[1734807546009,0.02954173,97411.0,97410.0,0.052347]
[1734807546506,0.0295491,97411.0,97410.0,0.052347]
[1734807547710,0.1827171,97411.0,97410.0,0.052347]
[1734807548909,0.18273681,97411.0,97410.0,0.052347]
[1734807550607,0.19307553,97411.0,97410.0,0.052347]
[1734807550914,0.08982664,97411.0,97410.0,0.052347]
[1734807551303,0.07948792,97411.0,97410.0,0.052347]
[1734807551809,0.13083392,97411.0,97410.0,0.052347]
[1734807552013,0.02956881,97411.0,97410.0,0.052347]
[1734807553410,0.07948792,97411.0,97410.0,0.052347]
[1734807555005,0.07108691,97411.0,97410.0,0.052347]
[1734807555317,0.07946494,97411.0,97410.0,0.052347]
[1734807555803,0.07946494,97411.0,97410.0,0.001]
[1734807557509,0.07944713,97411.0,97410.0,0.001]
[1734807560816,0.05135,97404.0,97403.0,0.051351]
[1734807561015,0.051351,97402.0,97393.0,0.3608]
[1734807561311,0.01852802,97401.0,97399.0,0.051352]
[1734807561515,0.051351,97402.0,97399.0,0.051352]
[1734807561516,0.01852802,97400.0,97399.0,0.051352]
[1734807563308,0.20494075,97402.0,97400.0,0.051352]
[1734807563618,0.01223253,97401.0,97400.0,0.051352]
[1734807563819,0.02059217,97401.0,97400.0,0.051352]
[1734807564203,0.02060115,97401.0,97400.0,0.051352]
[1734807564410,0.01860115,97401.0,97400.0,0.051352]
[1734807565313,0.01860149,97401.0,97400.0,0.051352]
[1734807566208,0.22864711,97403.0,97393.0,0.3608]
[1734807566209,0.008355,97402.0,97393.0,0.3608]
[1734807566414,0.01855841,97401.0,97400.0,0.051352]
[1734807566617,0.01020341,97401.0,97400.0,0.051352]
[1734807566914,0.01855841,97401.0,97400.0,0.051352]
[1734807567107,0.01020341,97401.0,97400.0,0.051352]
[1734807567306,0.01320341,97401.0,97400.0,0.051352]
[1734807569218,0.01319622,97401.0,97400.0,0.051352]
[1734807569611,0.13606415,97401.0,97400.0,0.051352]
[1734807572017,0.01319622,97401.0,97400.0,0.051352]
[1734807572315,0.01320427,97401.0,97400.0,0.051352]
[1734807573917,0.003,97401.0,97400.0,0.051352]
[1734807574218,0.01320427,97401.0,97400.0,0.051352]
[1734807574518,0.003,97401.0,97400.0,0.051352]
[1734807574708,0.01320427,97401.0,97400.0,0.051352]
[1734807574908,0.003,97401.0,97400.0,0.051352]
[1734807575109,0.1054054,97401.0,97400.0,0.23614824]
[1734807575319,0.09520113,97401.0,97400.0,0.23614824]
[1734807575521,0.1054054,97401.0,97400.0,0.23614824]
[1734807576225,0.1054054,97401.0,97400.0,0.24642717]
[1734807576810,0.01320427,97401.0,97400.0,0.06163093]
[1734807578415,0.02158607,97401.0,97400.0,0.06163093]
[1734807579012,0.02158607,97401.0,97400.0,0.30741811]
[1734807580322,0.02158607,97401.0,97400.0,0.06163093]
[1734807581019,0.02158662,97401.0,97400.0,0.06163093]
[1734807584528,0.01320427,97401.0,97400.0,0.06163093]
[1734807584729,0.02158662,97401.0,97400.0,0.06163093]
[1734807585027,0.01320427,97401.0,97400.0,0.06163093]
[1734807585933,0.01320427,97401.0,97400.0,0.24624765]
[1734807587735,0.01320427,97401.0,97400.0,0.06163093]
[1734807591926,0.10546593,97401.0,97400.0,0.30778642]
[1734807592223,0.10547309,97401.0,97400.0,0.30778642]
[1734807592724,0.10547309,97401.0,97400.0,0.06163093]
[1734807592925,0.1054803,97401.0,97400.0,0.06163093]
[1734807593834,0.01321864,97401.0,97400.0,0.06163093]
[1734807594136,0.02159768,97401.0,97400.0,0.06163093]
[1734807594324,0.01321864,97401.0,97400.0,0.06163093]
[1734807594716,0.02159768,97401.0,97400.0,0.06163093]
[1734807594918,0.01321864,97401.0,97400.0,0.06163093]
[1734807596622,0.01316091,97401.0,97400.0,0.06163093]
[1734807597135,0.10545996,97401.0,97400.0,0.06163093]
[1734807598435,0.10547344,97401.0,97400.0,0.06163093]
[1734807598927,0.10545353,97401.0,97400.0,0.06163093]
[1734807599430,0.10545338,97401.0,97400.0,0.06163093]
[1734807600232,0.09529905,97401.0,97400.0,0.06163093]
[1734807600422,0.09529905,97401.0,97400.0,0.1006861]
[1734807601435,0.11380105,97401.0,97400.0,0.06163093]
[1734807601830,0.021502,97401.0,97400.0,0.32360671]
[1734807602828,0.021502,97401.0,97400.0,0.06163093]
[1734807605338,0.11376123,97401.0,97400.0,0.06163093]
[1734807606038,0.11376123,97401.0,97400.0,0.42243093]
[1734807606225,0.10534905,97401.0,97400.0,0.46144579]
[1734807606427,0.10564121,97401.0,97400.0,0.46144579]
[1734807606830,0.10561904,97401.0,97400.0,0.46144579]
[1734807608431,0.01335981,97401.0,97400.0,1.03160107]
[1734807609734,0.0217576,97401.0,97400.0,0.99258621]
[1734807610838,0.0217576,97401.0,97400.0,0.42243093]
[1734807611028,0.01335981,97401.0,97400.0,0.42243093]
[1734807611233,0.01335981,97401.0,97400.0,0.46144758]
[1734807612029,0.01341009,97401.0,97400.0,0.46144758]
[1734807612233,0.01341009,97401.0,97400.0,0.76926556]
[1734807612544,0.002,97401.0,97400.0,0.76926556]
[1734807613131,0.08222519,97404.0,97403.0,0.051351]
[1734807613333,0.07921519,97408.0,97407.0,0.051348]
[1734807613539,0.07921519,97408.0,97407.0,0.09036465]
[1734807614039,0.08098854,97412.0,97411.0,0.051346]
[1734807614241,0.08098854,97412.0,97411.0,0.45116265]
[1734807614744,0.08098854,97428.0,97411.0,0.45116265]
[1734807614933,0.08098854,97428.0,97427.0,0.412138]
[1734807616346,0.005,97428.0,97427.0,0.413138]
[1734807617042,0.009,97428.0,97427.0,0.414138]
[1734807617233,0.02746922,97428.0,97427.0,0.053338]
[1734807617837,0.02745735,97428.0,97427.0,0.053338]
[1734807618242,0.02745735,97428.0,97422.0,0.30723778]
[1734807618547,0.051339,97426.0,97422.0,0.23589778]
[1734807618746,0.009,97428.0,97422.0,0.23589778]
[1734807618747,0.01845735,97425.0,97422.0,0.23589778]
[1734807618948,0.01845735,97424.0,97419.0,0.051342]
[1734807619145,0.051342,97419.0,97417.0,0.18425914]
[1734807619349,0.04885735,97418.0,97417.0,0.18425914]
[1734807619538,0.04885735,97418.0,97417.0,0.03455914]
[1734807619742,0.04885735,97418.0,97412.0,0.24567885]
[1734807619743,0.051345,97413.0,97412.0,0.24567885]
[1734807620043,0.06980235,97413.0,97412.0,0.24567885]
[1734807620347,0.01845735,97413.0,97399.0,0.47460185]
[1734807620554,0.3608,97404.0,97399.0,0.42324885]
[1734807620754,0.37934712,97404.0,97402.0,0.051351]
[1734807621836,0.38034712,97404.0,97402.0,0.051351]
[1734807623152,0.37196781,97404.0,97402.0,0.051351]
[1734807623550,0.37392318,97404.0,97402.0,0.051351]
[1734807623857,0.3638,97404.0,97402.0,0.051351]
[1734807624055,0.37390827,97404.0,97402.0,0.051351]
[1734807624552,0.3739083,97404.0,97402.0,0.051351]
[1734807625837,0.3739083,97404.0,97399.0,0.16947]
[1734807626151,0.3739083,97404.0,97402.0,0.051351]
[1734807626545,0.37390931,97404.0,97403.0,0.00739824]
[1734807627340,0.74307135,97404.0,97403.0,0.00739824]
[1734807627753,0.74307135,97404.0,97403.0,0.01560824]
[1734807629371,0.73296204,97404.0,97403.0,0.01560824]
[1734807629547,0.7431122,97404.0,97403.0,0.01560824]
[1734807631043,0.7431122,97404.0,97403.0,0.10416824]
[1734807632351,0.7430651,97404.0,97403.0,0.10416824]
[1734807632545,0.051355,97395.0,97394.0,0.00642]
[1734807632745,0.4222889,97395.0,97394.0,0.00642]
[1734807632939,0.3709339,97395.0,97382.0,0.051362]
[1734807633142,0.051362,97381.0,97377.0,0.051364]
[1734807633344,0.051362,97381.0,97378.0,0.051364]